bitfinex/quotes_ETHUSD_20240924
["timestamp","ask_amount","ask_price","bid_price","bid_amount"]
[1727220572602,4.54085205,2662.4,2662.0,0.06642356]
[1727220573185,0.78482205,2662.3,2662.1,0.8193]
[1727220573404,0.78482205,2662.8,2662.4,0.8193]
[1727220573608,4.54027205,2662.8,2662.5,0.0659833]
[1727220573804,0.78482205,2662.8,2662.5,0.0659833]
[1727220573990,4.54042205,2662.7,2662.5,0.0659833]
[1727220574202,3.7556,2662.7,2662.5,0.0659833]
[1727220574524,4.54042205,2662.7,2662.5,0.0659833]
[1727220574724,0.78482205,2662.8,2662.5,0.0659833]
[1727220574930,4.54012205,2662.9,2662.5,0.0659833]
[1727220575335,0.78482205,2662.8,2662.5,0.0659833]
[1727220576332,0.78482205,2662.9,2662.6,0.8193]
[1727220576534,1.17723307,2663.0,2662.8,0.8193]
[1727220576535,0.78482205,2663.0,2662.8,0.8193]
[1727220576902,8.16482205,2663.1,2662.9,0.0655101]
[1727220577232,0.78482205,2663.0,2662.8,0.8193]
[1727220579538,0.78482205,2662.9,2662.8,0.8193]
[1727220579829,0.78482205,2662.9,2662.8,0.88489054]
[1727220583217,1.35653656,2662.9,2662.8,0.06559054]
[1727220583424,4.32701451,2662.9,2662.5,0.8028]
[1727220583613,0.78571905,2662.7,2662.5,0.8028]
[1727220583942,4.54143905,2662.6,2662.2,0.8028]
[1727220584098,0.78571905,2662.5,2662.2,0.8028]
[1727220584649,0.78571905,2662.5,2662.2,4.55908]
[1727220584939,0.78571905,2662.6,2662.2,4.55908]
[1727220585148,0.78571905,2662.6,2662.2,0.8028]
[1727220585149,5.65615161,2662.6,2662.2,0.8028]
[1727220585432,0.78571905,2662.5,2662.2,0.8028]
[1727220587208,0.78571905,2662.4,2662.2,0.8028]
[1727220587814,0.78571905,2662.5,2662.3,0.06587244]
[1727220587996,0.78571905,2662.4,2662.2,0.8028]
[1727220588198,0.78571905,2662.4,2662.3,0.06587244]
[1727220588419,0.78571905,2662.4,2662.2,0.8028]
[1727220588623,0.78571905,2662.4,2662.3,0.06587244]
[1727220588849,0.78571905,2662.4,2662.2,0.8028]
[1727220589061,0.78571905,2662.4,2662.3,0.06587244]
[1727220589431,0.78571905,2662.4,2662.2,0.8028]
[1727220589647,0.78571905,2662.4,2662.3,0.06587244]
[1727220590053,0.78571905,2662.4,2662.2,0.8028]
[1727220590238,0.78571905,2662.4,2662.3,0.06587244]
[1727220590557,0.78571905,2662.4,2662.2,0.8028]
[1727220590723,0.78571905,2662.4,2662.3,0.06587244]
[1727220591060,0.78571905,2662.4,2662.2,0.8028]
[1727220591666,0.78571905,2662.3,2662.2,0.8028]
[1727220591963,0.78571905,2662.4,2662.2,0.8028]
[1727220592190,0.78571905,2662.3,2662.2,0.8028]
[1727220592461,0.78571905,2662.4,2662.2,0.8028]
[1727220592626,0.78571905,2662.4,2662.2,4.559]
[1727220593362,0.78571905,2662.3,2662.2,4.559]
[1727220599832,0.78571905,2662.4,2662.3,3.75615]
[1727220600537,1.17723307,2662.5,2662.3,3.75615]
[1727220600748,0.78732812,2662.4,2662.3,3.75615]
[1727220601625,1.17723307,2662.5,2662.3,3.75615]
[1727220601854,1.5696441,2662.6,2662.3,3.75615]
[1727220601855,1.17723307,2662.4,2662.3,3.75615]
[1727220602569,1.17723307,2662.5,2662.3,5.367265]
[1727220602763,1.17723307,2662.5,2662.4,3.756]
[1727220603076,0.78733803,2662.5,2662.4,3.756]
[1727220603445,1.17723307,2662.6,2662.3,5.367265]
[1727220603639,0.78741157,2662.4,2662.3,4.53575]
[1727220604080,0.78741157,2662.5,2662.4,3.756]
[1727220604445,1.17723307,2662.6,2662.4,3.756]
[1727220604889,1.17723307,2662.5,2662.4,3.756]
[1727220605549,1.17723307,2662.6,2662.4,3.756]
[1727220606447,1.17723307,2662.5,2662.4,3.756]
[1727220611174,1.17723307,2662.5,2662.4,4.256]
[1727220611872,1.5696441,2662.6,2662.4,4.256]
[1727220612076,1.18226413,2662.5,2662.4,4.256]
[1727220612747,1.5696441,2662.6,2662.4,4.256]
[1727220613153,1.18239098,2662.5,2662.4,4.256]
[1727220613353,1.18239098,2662.5,2662.4,5.936975]
[1727220613883,1.18239098,2662.5,2662.4,5.0578]
[1727220614090,1.15156935,2662.5,2662.4,4.256]
[1727220614243,2.72121345,2662.5,2662.4,0.5]
[1727220614445,0.84469121,2662.5,2662.4,0.5]
[1727220614784,3.96728747,2662.5,2662.4,0.5]
[1727220614995,1.15156935,2662.5,2662.4,0.5]
[1727220615154,1.97140256,2662.5,2662.4,0.5]
[1727220615341,1.97140256,2662.5,2662.4,1.0]
[1727220615342,1.15156935,2662.5,2662.4,1.0]
[1727220615537,1.15156935,2662.5,2662.4,1.06578161]
[1727220615538,1.97140256,2662.5,2662.4,1.06578161]
[1727220615773,2.28369975,2662.5,2662.4,1.0]
[1727220615937,3.4352691,2662.5,2662.4,1.0]
[1727220618445,1.46386654,2662.5,2662.4,1.0]
[1727220619760,2.28496853,2662.5,2662.4,1.0]
[1727220620086,3.43656773,2662.5,2662.4,1.0]
[1727220620393,3.43659949,2662.5,2662.4,1.0]
[1727220620573,1.46386654,2662.5,2662.4,1.0]
[1727220621080,2.28856654,2662.5,2662.4,1.0]
[1727220621683,2.28856654,2662.5,2662.4,1.06582635]
[1727220622896,2.28856654,2662.5,2662.4,1.0]
[1727220623961,2.28856654,2662.5,2662.4,1.06582635]
[1727220627714,6.04442654,2662.5,2662.4,1.06582635]
[1727220627868,10.24648453,2662.5,2662.4,1.06582635]
[1727220628069,10.24648453,2662.5,2662.4,1.0]
[1727220628070,7.48430661,2662.5,2662.4,1.0]
[1727220629262,10.24649881,2662.5,2662.4,1.0]
[1727220629747,7.48430661,2662.5,2662.4,1.0]
[1727220630388,10.24606688,2662.5,2662.4,1.0]
[1727220632099,10.79606688,2662.5,2662.4,1.0]
[1727220633784,10.7947142,2662.5,2662.4,1.0]
[1727220635969,8.03430661,2662.5,2662.4,1.0]
[1727220638521,10.79273561,2662.5,2662.4,1.0]
[1727220638877,11.03430661,2662.5,2662.4,1.0]
[1727220639329,13.79234137,2662.5,2662.4,1.0]
[1727220640782,11.03430661,2662.5,2662.4,1.0]
[1727220641311,14.29503807,2662.5,2662.4,0.11624859]
[1727220641677,11.03430661,2662.5,2662.4,0.11624859]
[1727220641914,14.29164626,2662.5,2662.4,0.11624859]
[1727220642212,14.29087126,2662.5,2662.4,0.11624859]
[1727220642986,11.03430661,2662.5,2662.4,0.11624859]
[1727220643174,14.29077857,2662.5,2662.4,0.11624859]
[1727220643373,14.29012508,2662.5,2662.4,0.11624859]
[1727220646131,18.25012508,2662.5,2662.4,0.11624859]
[1727220646616,14.99430661,2662.5,2662.4,0.01396737]
[1727220647127,38.11776778,2662.5,2662.4,0.01396737]
[1727220647328,39.8471977,2662.5,2662.4,0.01396737]
[1727220648035,39.84714452,2662.5,2662.4,0.01396737]
[1727220648568,35.33714452,2662.5,2662.4,0.01396737]
[1727220648731,31.46563346,2662.5,2662.4,0.01396737]
[1727220649239,35.18170779,2662.5,2662.4,0.01396737]
[1727220649441,33.46563346,2662.5,2662.4,0.01396737]
[1727220650005,35.7317046,2662.5,2662.4,0.01396737]
[1727220650205,34.01563346,2662.5,2662.4,0.01396737]
[1727220651349,3.75615,2662.3,2662.2,0.18259307]
[1727220651521,13.09246458,2662.3,2662.2,0.18259307]
[1727220651712,14.53234465,2662.3,2662.2,0.18259307]
[1727220651909,11.77942627,2662.3,2662.2,0.18259307]
[1727220652114,6.34759942,2662.3,2662.2,0.18259307]
[1727220652346,6.87380722,2662.3,2662.2,0.18259307]
[1727220652744,1.15156935,2662.3,2662.2,0.24583137]
[1727220652950,1.57285177,2662.3,2662.2,0.24583137]
[1727220653186,1.17957202,2662.3,2662.2,0.18259307]
[1727220653353,1.17957202,2662.3,2662.2,0.95579307]
[1727220653843,1.13600843,2662.3,2662.2,1.01893856]
[1727220654042,1.17965614,2662.3,2662.2,1.01893856]
[1727220654382,4.93580614,2662.3,2662.2,1.01893856]
[1727220654684,6.46536488,2662.3,2662.2,0.24573856]
[1727220654984,8.08136656,2662.3,2662.2,0.18259307]
[1727220655183,6.11532213,2662.3,2662.2,0.18259307]
[1727220655385,6.19086765,2662.3,2662.2,0.18259307]
[1727220655687,6.66532213,2662.3,2662.2,0.24345991]
[1727220655986,6.66532213,2662.3,2662.2,0.18259307]
[1727220656683,8.08591038,2662.3,2662.2,0.18259307]
[1727220656981,6.66532213,2662.3,2662.2,0.18259307]
[1727220657171,10.44517462,2662.3,2662.2,0.18259307]
[1727220657683,10.44641563,2662.3,2662.2,0.18259307]
[1727220658990,11.19761563,2662.3,2662.2,0.18259307]
[1727220660659,8.8371213,2662.3,2662.2,0.18259307]
[1727220660961,11.8371213,2662.3,2662.2,0.18259307]
[1727220663158,14.59103135,2662.3,2662.2,0.18259307]
[1727220663996,11.8371213,2662.3,2662.2,0.0229125]
[1727220666461,15.09264623,2662.3,2662.2,0.0229125]
[1727220666660,11.8371213,2662.3,2662.2,0.0229125]
[1727220667498,17.09264623,2662.3,2662.2,0.0229125]
[1727220667819,14.32440261,2662.3,2662.2,0.00289114]
[1727220668532,9.16909685,2662.0,2661.9,0.0389028]
[1727220668733,9.16909685,2662.0,2661.1,0.0389028]
[1727220668734,5.41902685,2661.2,2661.1,0.0389028]
[1727220669027,6.63066427,2661.2,2661.1,0.0389028]
[1727220669198,12.3870114,2661.2,2661.1,0.0389028]
[1727220669531,15.29908299,2661.2,2661.1,0.0389028]
[1727220670229,15.298045,2661.2,2661.1,0.0389028]
[1727220670527,13.84303093,2661.2,2661.1,0.0389028]
[1727220670824,13.09183093,2661.2,2661.1,0.0389028]
[1727220672530,12.22495251,2661.2,2661.1,0.0389028]
[1727220672691,8.4437919,2661.2,2661.1,0.0389028]
[1727220672890,8.4437919,2661.2,2661.1,0.10160899]
[1727220672891,4.8937919,2661.2,2661.1,0.10160899]
[1727220673210,4.8937919,2661.2,2661.1,0.0389028]
[1727220673413,6.860985,2661.2,2661.1,0.0389028]
[1727220673618,6.860985,2661.2,2661.1,0.10160899]
[1727220673825,6.860985,2661.2,2661.1,0.0389028]
[1727220674002,6.860985,2661.2,2661.1,0.10160899]
[1727220674206,6.86081515,2661.2,2661.1,0.10160899]
[1727220674627,6.86081515,2661.2,2661.1,0.92350899]
[1727220674628,3.10311515,2661.2,2661.1,0.92350899]
[1727220674839,1.17995384,2661.2,2661.1,0.92350899]
[1727220675042,1.13666908,2661.2,2661.1,0.92350899]
[1727220675255,1.17999779,2661.2,2661.1,0.92350899]
[1727220676101,1.17999779,2661.2,2661.1,0.8608028]
[1727220676302,1.17999779,2661.2,2661.1,0.92350899]
[1727220676604,1.17997988,2661.2,2661.1,0.92350899]
[1727220678320,1.13778498,2661.2,2661.1,0.92350899]
[1727220679205,2.71119014,2661.2,2661.1,0.92350899]
[1727220679407,2.71119014,2661.2,2661.1,0.8608028]
[1727220679613,1.13778498,2661.2,2661.1,0.92350899]
[1727220680002,1.1800389,2661.2,2661.1,0.92350899]
[1727220681347,1.13789111,2661.2,2661.1,0.92350899]
[1727220681549,1.18014636,2661.2,2661.1,0.92350899]
[1727220682595,1.1801841,2661.2,2661.1,0.92350899]
[1727220682883,1.13926019,2661.2,2661.1,0.92350899]
[1727220683102,1.18018418,2661.2,2661.1,0.92350899]
[1727220683605,1.18022372,2661.2,2661.1,0.92350899]
[1727220684561,1.13933054,2661.2,2661.1,0.92350899]
[1727220684752,1.18027317,2661.2,2661.1,0.92350899]
[1727220685656,0.78687697,2661.2,2661.1,0.92350899]
[1727220686209,1.18027317,2661.3,2661.1,0.92350899]
[1727220687760,1.18027317,2661.3,2661.2,4.5796]
[1727220687997,1.57340516,2661.4,2661.3,0.8219]
[1727220687998,0.78691048,2661.4,2661.3,0.8219]
[1727220688384,0.78691048,2661.4,2661.3,0.88425632]
[1727220688864,0.78693364,2661.4,2661.3,0.88425632]
[1727220689062,0.78693364,2661.4,2661.3,0.8219]
[1727220689261,0.78693364,2661.4,2661.1,0.0389028]
[1727220689262,6.83639708,2661.4,2661.1,0.0389028]
[1727220689569,12.07999816,2661.2,2661.1,0.0389028]
[1727220689772,13.06935095,2661.2,2661.1,0.0389028]
[1727220690937,15.82347323,2661.2,2661.1,0.00483924]
[1727220691101,13.06935095,2661.2,2661.1,0.00483924]
[1727220691295,15.02745427,2661.2,2661.1,0.00483924]
[1727220691495,17.38799781,2661.2,2661.1,0.00483924]
[1727220691726,14.18997589,2661.2,2661.1,0.00483924]
[1727220692047,10.405194,2661.2,2661.1,0.00483924]
[1727220692397,9.855194,2661.2,2661.1,0.00483924]
[1727220692603,4.89709068,2661.2,2661.1,0.00483924]
[1727220692797,6.86388808,2661.2,2661.1,0.00483924]
[1727220693306,6.86377986,2661.2,2661.1,0.00483924]
[1727220693707,6.86375845,2661.2,2661.1,0.00483924]
[1727220695406,4.89709068,2661.2,2661.1,0.00483924]
[1727220695739,5.99855588,2661.2,2661.1,0.00483924]
[1727220696107,7.96509063,2661.2,2661.1,0.00483924]
[1727220696610,8.51509063,2661.2,2661.1,0.00483924]
[1727220697441,6.54855588,2661.2,2661.1,0.00483924]
[1727220697660,8.51502534,2661.2,2661.1,0.00483924]
[1727220698070,6.54855588,2661.2,2661.1,0.00483924]
[1727220698727,8.51514135,2661.2,2661.1,0.00483924]
[1727220699063,6.54855588,2661.2,2661.1,0.00483924]
[1727220701853,7.97323181,2661.2,2661.1,0.00483924]
[1727220702265,6.54855588,2661.2,2661.1,0.00483924]
[1727220703169,7.9736441,2661.2,2661.1,0.00483924]
[1727220703467,10.33606386,2661.2,2661.1,0.00483924]
[1727220705465,10.33716964,2661.2,2661.1,0.00483924]
[1727220705778,10.3371719,2661.2,2661.1,0.00483924]
[1727220707085,7.9736441,2661.2,2661.1,0.00483924]
[1727220709487,6.54855588,2661.2,2661.1,0.00483924]
[1727220709675,7.9736441,2661.2,2661.1,0.00483924]
[1727220709875,7.4236441,2661.2,2661.1,0.00483924]
[1727220710089,8.68701721,2661.2,2661.1,0.76143924]
[1727220710655,6.3221789,2661.2,2661.1,0.76143924]
[1727220710876,6.3221789,2661.2,2661.1,0.81822305]
[1727220711400,8.68701721,2661.2,2661.1,0.81822305]
[1727220712080,8.68701721,2661.2,2661.1,0.76143924]
[1727220712389,8.6854524,2661.2,2661.1,0.76143924]
[1727220712806,8.68633267,2661.2,2661.1,0.76143924]
[1727220715597,8.68633267,2661.2,2661.1,0.81815115]
[1727220715964,8.68711557,2661.2,2661.1,0.81815115]
[1727220716585,6.32061409,2661.2,2661.1,0.81815115]
[1727220716776,7.26221269,2661.2,2661.1,0.76143924]
[1727220717092,7.26221269,2661.2,2661.1,0.81815115]
[1727220717269,8.68730091,2661.2,2661.1,0.81815115]
[1727220717473,8.68749696,2661.2,2661.1,0.81815115]
[1727220717899,6.32061409,2661.2,2661.1,0.81815115]
[1727220720320,7.60456783,2661.2,2661.1,0.06155115]
[1727220720832,7.60456783,2661.2,2661.1,0.00483924]
[1727220723195,2.5644789,2661.2,2661.1,0.00483924]
[1727220723393,3.50659817,2661.2,2661.1,0.76513924]
[1727220723645,1.13939068,2661.2,2661.1,0.82185115]
[1727220725042,1.13939068,2661.2,2660.8,3.75826]
[1727220725043,1.13939068,2661.2,2659.1,0.3954642]
[1727220725044,19.87,2659.9,2659.1,0.3954642]
[1727220725223,19.87,2659.9,2658.7,3.29683729]
[1727220725224,7.31067,2659.1,2659.0,0.61541392]
[1727220725546,6.52872148,2659.1,2659.0,0.61541392]
[1727220725694,2.76805148,2659.1,2658.7,0.0389028]
[1727220726018,2.76805148,2659.1,2658.0,2.41162192]
[1727220726019,1.57517457,2658.8,2658.1,3.76207]
[1727220726220,2.92894701,2659.0,2658.1,3.76207]
[1727220726221,0.78762466,2658.6,2658.2,0.61736919]
[1727220726427,2.61577624,2658.5,2658.3,2.41162192]
[1727220726597,1.57517457,2658.8,2658.3,2.41162192]
[1727220726598,0.78762466,2658.8,2658.4,3.76166]
[1727220726944,0.36401295,2658.7,2658.5,0.61732819]
[1727220727238,0.78762466,2658.8,2658.5,0.61732819]
[1727220727768,1.18143699,2659.0,2658.5,0.61732819]
[1727220727769,0.78762466,2658.9,2658.5,0.61732819]
[1727220727977,0.78762466,2658.9,2658.6,0.7603]
[1727220728559,0.78762466,2659.0,2658.6,0.7603]
[1727220728864,0.78762466,2659.0,2658.7,0.51391282]
[1727220729858,1.17407174,2658.9,2658.7,0.51391282]
[1727220730156,0.78762466,2658.9,2658.7,0.51391282]
[1727220730358,0.78762466,2658.9,2658.6,0.7603]
[1727220731345,0.78762466,2659.0,2658.6,0.7603]
[1727220731866,1.17327123,2658.9,2658.6,0.7603]
[1727220732165,0.78762466,2659.0,2658.6,0.7603]
[1727220732355,0.78762466,2659.0,2658.7,0.04437595]
[1727220735195,4.54837466,2659.1,2658.7,0.04437595]
[1727220735675,4.54837466,2659.1,2658.7,0.56272436]
[1727220737404,3.76084,2659.0,2658.7,0.56272436]
[1727220737710,3.76084,2659.0,2658.7,0.04437595]
[1727220737892,4.54837466,2659.1,2658.7,0.04437595]
[1727220739324,0.78762466,2659.1,2658.7,0.04437595]
[1727220739498,3.76109,2658.8,2658.7,0.04437595]
[1727220739809,5.72015682,2658.8,2658.3,0.8517064]
[1727220739984,4.54871466,2658.8,2658.4,0.04307024]
[1727220740585,3.76124,2658.7,2658.4,0.04307024]
[1727220740770,4.54886466,2658.7,2658.4,0.04307024]
[1727220740974,3.76124,2658.7,2658.4,0.04307024]
[1727220742522,0.78762466,2658.8,2658.4,0.04307024]
[1727220742523,3.76113,2658.8,2658.4,0.04307024]
[1727220742742,3.76113,2658.8,2658.4,0.5087389]
[1727220743515,3.76118,2658.8,2658.4,0.5087389]
[1727220743737,4.54880466,2658.8,2658.4,0.04307024]
[1727220744046,4.54880466,2658.8,2658.5,0.04187131]
[1727220744253,0.78762466,2658.8,2658.3,0.8517064]
[1727220744457,4.54879466,2658.8,2658.6,0.04160396]
[1727220744633,3.76134,2658.7,2658.3,0.8517064]
[1727220746141,3.76134,2658.7,2658.0,3.58830268]
[1727220746321,3.76134,2658.7,2658.1,4.12091027]
[1727220747033,3.76134,2658.7,2658.2,0.04054001]
[1727220747233,3.76167,2658.4,2658.2,0.04054001]
[1727220747440,3.76167,2658.4,2657.9,3.76235]
[1727220747611,3.76167,2658.4,2657.9,4.138585]
[1727220747812,0.78762466,2658.5,2658.0,3.80177843]
[1727220748026,7.94289699,2658.6,2658.1,3.76208]
[1727220748027,3.76146,2658.6,2658.1,3.76208]
[1727220748313,4.54886466,2658.7,2658.2,0.41969392]
[1727220748507,3.76124,2658.7,2658.2,0.41969392]
[1727220749146,3.76124,2658.7,2658.3,0.8326]
[1727220749451,3.76124,2658.7,2658.4,0.03935964]
[1727220750430,4.54872466,2658.8,2658.4,0.03935964]
[1727220750431,0.78762466,2658.8,2658.4,0.03935964]
[1727220750629,4.54831466,2659.1,2658.5,3.76149]
[1727220750818,7.54832466,2659.1,2658.6,0.03919823]
[1727220751023,6.7607,2659.1,2658.6,0.03919823]
[1727220754452,0.78762466,2659.2,2658.9,3.76086]
[1727220754649,3.76011,2659.5,2659.0,0.41498877]
[1727220755322,3.76027,2659.4,2659.0,0.41498877]
[1727220757367,4.54789466,2659.4,2659.0,0.41498877]
[1727220757536,0.77254713,2659.3,2659.0,0.41498877]
[1727220757787,4.54789466,2659.4,2659.0,0.41498877]
[1727220758390,0.77233255,2659.3,2659.0,0.41498877]
[1727220758807,0.77233255,2659.3,2659.0,0.91498877]
[1727220759014,4.54789466,2659.4,2659.0,0.91498877]
[1727220759302,0.77189312,2659.3,2659.0,0.91498877]
[1727220759462,2.71748004,2659.3,2659.0,0.91498877]
[1727220759663,0.78762466,2659.3,2659.0,0.91498877]
[1727220759908,3.76027,2659.4,2659.0,0.91498877]
[1727220759909,4.54789466,2659.4,2659.0,0.91498877]
[1727220760090,0.77219007,2659.3,2659.1,0.46758488]
[1727220760477,0.78762466,2659.4,2659.2,0.82564479]
[1727220760681,0.77257594,2659.3,2659.2,0.82564479]
[1727220760882,0.78762466,2659.4,2659.2,0.82564479]
[1727220761081,0.77260188,2659.3,2659.2,0.82564479]
[1727220761282,1.93173558,2659.3,2659.2,0.82564479]
[1727220761682,2.71938337,2659.3,2659.2,0.82564479]
[1727220762499,1.93175871,2659.3,2659.2,0.82564479]
[1727220762716,2.71665455,2659.3,2659.2,0.82564479]
[1727220762876,2.71664992,2659.3,2659.2,0.82564479]
[1727220763070,1.93286596,2659.3,2659.2,0.04634479]
[1727220763310,2.40181371,2659.3,2659.2,0.04634479]
[1727220763512,3.11430295,2659.3,2659.0,1.0]
[1727220763816,2.71697194,2659.2,2659.0,1.0]
[1727220764374,2.71697194,2659.1,2659.0,1.0]
[1727220764606,0.78410598,2659.1,2659.0,1.0]
[1727220765408,0.77314638,2659.1,2659.0,1.0]
[1727220765575,1.93286596,2659.1,2659.0,1.0]
[1727220765776,2.71789221,2659.1,2659.0,1.0]
[1727220766105,2.71789221,2659.1,2658.9,3.35949319]
[1727220766301,0.78502625,2659.1,2659.0,3.76081]
[1727220766506,1.55317556,2659.1,2659.0,3.76081]
[1727220766705,2.70539952,2659.1,2659.0,3.76081]
[1727220766890,2.70539952,2659.1,2659.0,4.512984]
[1727220767494,2.70670623,2659.1,2659.0,4.512984]
[1727220767919,1.18143699,2659.2,2659.1,3.76067]
[1727220767920,0.78502625,2659.2,2659.1,3.76067]
[1727220768118,0.76921248,2659.2,2659.1,3.76067]
[1727220768328,1.55423873,2659.2,2659.1,4.9641264]
[1727220768495,0.76921248,2659.2,2659.1,4.9641264]
[1727220769039,0.76636677,2659.2,2659.1,4.9641264]
[1727220769237,2.70220309,2659.2,2659.1,5.7434264]
[1727220770261,3.66009373,2659.2,2659.1,5.7434264]
[1727220770540,2.47865674,2659.2,2659.1,5.7434264]
[1727220770708,3.26685171,2659.2,2659.1,5.7434264]
[1727220771097,3.66009373,2659.2,2659.1,5.7434264]
[1727220771341,2.47865674,2659.2,2659.1,5.7434264]
[1727220771496,3.66009373,2659.2,2659.1,5.7434264]
[1727220771698,2.70511342,2659.2,2659.1,5.818629]
[1727220772023,2.70511342,2659.2,2659.1,5.7434264]
[1727220772210,0.78793658,2659.2,2659.1,5.7434264]
[1727220772403,1.91945807,2659.2,2659.1,5.7434264]
[1727220772604,1.91945807,2659.2,2659.1,5.81862888]
[1727220772801,0.76778323,2659.2,2659.1,5.81862888]
[1727220773006,0.76778323,2659.2,2659.1,5.7434264]
[1727220773300,0.76778323,2659.2,2659.1,5.81862801]
[1727220773635,0.76778323,2659.2,2659.1,5.7434264]
[1727220773840,0.76778323,2659.2,2659.1,5.81862777]
[1727220774147,0.76778323,2659.2,2659.1,5.7434264]
[1727220774312,0.78793658,2659.4,2659.3,3.76038]
[1727220774505,2.70665528,2659.4,2659.3,3.76038]
[1727220775641,0.76748748,2659.4,2659.3,3.76038]
[1727220776200,0.78793658,2659.5,2659.4,3.76024]
[1727220776399,0.78793658,2659.5,2659.4,5.01503412]
[1727220776400,1.55514111,2659.5,2659.4,5.01503412]
[1727220776612,0.76720453,2659.5,2659.4,5.78123412]
[1727220776813,0.76720453,2659.5,2659.4,5.83444194]
[1727220777027,0.78793658,2659.7,2659.5,3.7601]
[1727220777200,0.78793658,2659.8,2659.6,3.83514765]
[1727220777396,1.18143699,2659.9,2659.8,3.75968]
[1727220777397,0.78793658,2659.9,2659.8,3.75968]
[1727220779647,3.6586176,2659.9,2659.8,0.05239726]
[1727220779804,3.6586176,2659.9,2659.8,0.05220332]
[1727220780005,3.6586176,2659.9,2659.7,3.75982]
[1727220780206,2.70345602,2659.8,2659.7,3.75982]
[1727220780427,1.9169153,2659.8,2659.6,3.75996]
[1727220780632,0.78654072,2659.8,2659.4,4.52634]
[1727220780854,2.70264197,2659.7,2659.5,3.76003]
[1727220781078,1.91606682,2659.6,2659.5,3.7601]
[1727220781234,1.91580682,2659.6,2659.5,3.7601]
[1727220781576,0.7664405,2659.6,2659.5,3.7601]
[1727220781762,0.78654072,2659.7,2659.5,3.7601]
[1727220781763,1.55298122,2659.7,2659.5,3.7601]
[1727220781967,1.91558728,2659.6,2659.3,3.76038]
[1727220782168,1.55245461,2659.5,2659.3,3.76038]
[1727220785063,0.76568228,2659.4,2659.3,3.76038]
[1727220785290,0.78601411,2659.5,2659.3,3.76038]
[1727220785291,1.55169639,2659.5,2659.3,3.76038]
[1727220785770,1.55169639,2659.5,2659.2,3.76048]
[1727220786181,1.14860124,2659.4,2659.2,3.76048]
[1727220786377,0.78601411,2659.5,2659.2,3.76048]
[1727220786591,1.55175132,2659.5,2659.2,3.76048]
[1727220786791,1.14863618,2659.4,2659.2,3.76048]
[1727220786999,0.78601411,2659.5,2659.2,3.76048]
[1727220787302,1.55176934,2659.5,2659.2,3.76048]
[1727220787465,2.70040219,2659.4,2659.2,3.76048]
[1727220787665,0.78601411,2659.4,2659.2,3.76048]
[1727220788085,1.55302442,2659.4,2659.2,3.76045]
[1727220788485,0.78601411,2659.4,2659.2,3.76045]
[1727220788913,1.55309793,2659.4,2659.2,3.76045]
[1727220789301,0.78601411,2659.4,2659.2,3.76045]
[1727220789889,1.55307998,2659.4,2659.2,3.76045]
[1727220790215,1.55307998,2659.4,2659.2,3.76044]
[1727220790408,1.55307998,2659.4,2659.2,4.589176]
[1727220790600,1.55307998,2659.4,2659.3,3.76038]
[1727220790795,0.78601411,2659.4,2659.3,3.76038]
[1727220790996,1.55307998,2659.4,2659.2,4.589176]
[1727220791526,2.70383447,2659.4,2659.2,3.76044]
[1727220792023,2.70383447,2659.4,2659.3,0.05597354]
[1727220792492,3.26417535,2659.4,2659.3,0.05597354]
[1727220792686,3.26417535,2659.4,2659.2,3.76044]
[1727220792886,0.76706587,2659.3,2659.2,3.76044]
[1727220793737,1.91829317,2659.3,2659.2,3.76044]
[1727220794327,3.26520201,2659.3,2659.2,3.76044]
[1727220794527,1.34690884,2659.3,2659.2,3.76044]
[1727220794712,3.26673069,2659.3,2659.2,4.589169]
[1727220795820,2.48071658,2659.3,2659.2,4.589169]
[1727220796010,2.48071658,2659.3,2659.2,3.76044]
[1727220796195,3.66215357,2659.3,2659.2,3.76044]
[1727220796395,3.66235146,2659.3,2659.2,3.76044]
[1727220796819,3.66236744,2659.3,2659.2,3.76044]
[1727220797208,6.49068875,2659.3,2659.1,3.76065]
[1727220797408,3.66222896,2659.2,2659.1,3.76065]
[1727220798538,3.66222896,2659.2,2659.1,4.589415]
[1727220799164,2.48093045,2659.2,2659.1,4.589415]
[1727220799336,2.47331073,2659.2,2659.1,4.589415]
[1727220799849,3.26124726,2659.2,2659.1,4.589415]
[1727220800007,2.47331073,2659.2,2659.1,4.589415]
[1727220800209,3.26141668,2659.2,2659.1,4.589415]
[1727220801314,2.47331073,2659.2,2659.1,4.589415]
[1727220801517,3.65460924,2659.2,2659.1,4.589415]
[1727220802313,2.47331073,2659.2,2659.1,4.589415]
[1727220803065,2.70033899,2659.2,2659.1,4.589415]
[1727220803240,1.91220213,2659.2,2659.1,4.589415]
[1727220803437,2.4736589,2659.2,2659.1,4.589415]
[1727220804070,3.26222226,2659.2,2659.1,4.589415]
[1727220804845,3.26236773,2659.2,2659.1,4.589415]
[1727220806942,3.26236773,2659.2,2659.1,4.64548723]
[1727220808060,3.26250759,2659.2,2659.1,4.64548723]
[1727220808502,2.47425936,2659.2,2659.1,4.64548723]
[1727220808698,3.26286134,2659.2,2659.1,3.81672223]
[1727220809003,3.65635773,2659.2,2659.1,3.81672223]
[1727220811428,6.48048312,2659.2,2659.1,3.81672223]
[1727220812132,6.48069336,2659.2,2659.1,3.81672223]
[1727220812298,5.01957043,2659.2,2659.1,3.81672223]
[1727220812499,6.48090168,2659.2,2659.1,3.81672223]
[1727220813532,4.56760743,2659.2,2659.1,3.81672223]
[1727220813693,5.02089454,2659.2,2659.1,3.81672223]
[1727220814701,5.58304466,2659.2,2659.1,3.81672223]
[1727220815700,5.58304466,2659.2,2658.8,6.76105]
[1727220815701,4.90731028,2659.2,2658.8,3.761]
[1727220816005,2.78610083,2658.9,2658.6,3.76128]
[1727220816349,1.57825006,2658.7,2658.6,3.76128]
[1727220816638,5.02397003,2658.7,2658.6,3.76128]
[1727220816951,3.99835531,2658.7,2658.6,3.76128]
[1727220817447,3.99835531,2658.7,2658.2,10.52372]
[1727220817600,1.18308396,2658.3,2658.2,3.76184]
[1727220817800,3.65033766,2658.3,2658.2,3.76184]
[1727220818050,3.6503287,2658.3,2658.2,3.76184]
[1727220818254,3.65138392,2658.3,2658.2,3.76184]
[1727220818441,3.65138392,2658.3,2658.2,4.589881]
[1727220819363,3.65138392,2658.3,2658.1,3.76207]
[1727220819518,2.70355375,2658.2,2658.1,3.76207]
[1727220819719,3.25522049,2658.2,2658.1,3.76207]
[1727220819953,2.70355375,2658.2,2658.1,7.52414]
[1727220820169,0.76626943,2658.2,2658.1,7.52414]
[1727220820453,0.76626943,2658.2,2658.1,8.27852446]
[1727220820661,0.78788017,2658.3,2658.2,3.76194]
[1727220820963,2.70104147,2658.3,2658.2,3.76194]
[1727220821846,0.76526452,2658.3,2658.2,3.76194]